[Event "RUS-ch Boys U21 2021"]
[Site "Loo"]
[Date "2021.04.24"]
[Round "4.8"]
[White "Zhafyarov, Adel"]
[Black "Marchenko, Nikolay"]
[Result "1/2-1/2"]
[ECO "A45"]
[WhiteElo "2252"]
[BlackElo "2062"]
[Annotator "ChessBase"]
[PlyCount "138"]
[EventDate "2021.04.21"]
[EventType "swiss"]
[EventCountry "RUS"]
[SourceTitle "playchess.com"]
[Source "ChessBase"]
[SourceQuality "1"]
[TimeControl "40/5400+30:1800+30"]

1. d4 {[%emt 0:01:00]} Nf6 {[%emt 0:00:05]} 2. Bf4 {[%emt 0:00:03]} c5 {[%emt 0:00:03]} 3. e3 {[%emt 0:00:06]} Qb6 {[%emt 0:00:30]} 4. Na3 {[%emt 0:01:20]} d6 {[%emt 0:02:30]} 5. Nc4 {[%emt 0:01:18]} Qc7 {[%emt 0:00:04]} 6. a4 {[%emt 0:03:27]} Nbd7 {[%emt 0:03:09]} 7. h3 {[%emt 0:02:34]} g6 {[%emt 0:00:56]} 8. Nf3 {[%emt 0:00:06]} Bg7 {[%emt 0:00:04]} 9. Be2 {[%emt 0:00:04]} cxd4 {[%emt 0:02:12]} 10. exd4 {[%emt 0:00:07]} Nd5 {[%emt 0:00:05]} 11. Bh2 {[%emt 0:00:38]} O-O {[%emt 0:00:09]} 12. O-O {[%emt 0:00:07]} b6 {[%emt 0:00:31]} 13. Na3 {[%emt 0:04:48]} Bb7 {[%emt 0:03:52]} 14. Re1 {[%emt 0:03:31]} Rac8 {[%emt 0:05:15]} 15. c3 {[%emt 0:00:58]} Qb8 {[%emt 0:04:06]} 16. a5 {[%emt 0:03:48]} Rfe8 {[%emt 0:04:54]} 17. a6 {[%emt 0:02:46]} Bc6 {[%emt 0:01:21]} 18. Qb3 {[%emt 0:05:44]} h6 {[%emt 0:11:51]} 19. Bc4 {[%emt 0:03:46]} e6 {[%emt 0:00:39]} 20. Nb5 {[%emt 0:04:27]} Bxb5 {[%emt 0:02:41]} 21. Bxb5 {[%emt 0:00:35]} Red8 {[%emt 0:00:08]} 22. Nd2 {[%emt 0:00:05]} N7f6 {[%emt 0:00:16]} 23. Qa4 {[%emt 0:04:56]} Qa8 {[%emt 0:02:02]} 24. c4 {[%emt 0:03:39]} Ne7 {[%emt 0:00:04]} 25. d5 {[%emt 0:00:04]} e5 {[%emt 0:01:28]} 26. f4 {[%emt 0:00:13]} Nh5 {[%emt 0:04:02]} 27. g4 {[%emt 0:05:17]} Nf6 {[%emt 0:18:57]} 28. fxe5 {[%emt 0:00:04]} dxe5 {[%emt 0:00:06]} 29. Bxe5 {[%emt 0:00:12]} Nfxd5 {[%emt 0:21:14]} 30. cxd5 {[%emt 0:00:36]} Qxd5 {[%emt 0:00:16]} 31. Bxg7 {[%emt 0:00:57]} Qc5+ {[%emt 0:00:06]} 32. Kh1 {[%emt 0:00:09]} Rxd2 {[%emt 0:00:05]} 33. Be5 {[%emt 0:12:39]} Qd5+ {[%emt 0:01:57]} 34. Qe4 {[%emt 0:00:05]} Qxb5 {[%emt 0:00:11]} 35. Bc3 {[%emt 0:00:05]} Rd7 {[%emt 0:00:42]} 36. Rad1 {[%emt 0:03:03]} Rxd1 {[%emt 0:06:46]} 37. Rxd1 {[%emt 0:00:01]} Qc6 {[%emt 0:00:06]} 38. Qxc6 {[%emt 0:00:24]} Nxc6 {[%emt 0:00:05]} 39. Rd7 {[%emt 0:00:07]} b5 {[%emt 0:03:36]} 40. Rb7 {[%emt 0:00:00]} b4 {[%emt 0:00:00]} 41. Bf6 {[%emt 0:15:19]} g5 {[%emt 0:04:03]} 42. h4 {[%emt 0:09:50]} gxh4 {[%emt 0:00:33]} 43. Kg2 {[%emt 0:01:18]} Re8 {[%emt 0:05:46]} 44. Rc7 {[%emt 0:02:21]} Re6 {[%emt 0:00:10]} 45. Bxh4 {[%emt 0:00:42]} Kg7 {[%emt 0:01:40]} 46. Bf2 {[%emt 0:00:41]} Kg6 {[%emt 0:04:25]} 47. Kg3 {[%emt 0:00:37]} Nb8 {[%emt 0:00:48]} 48. Rxa7 {[%emt 0:00:58]} Rxa6 {[%emt 0:02:28]} 49. Rb7 {[%emt 0:00:05]} Nc6 {[%emt 0:00:03]} 50. Bc5 {[%emt 0:01:19]} Ra5 {[%emt 0:00:29]} 51. Bxb4 {[%emt 0:00:52]} Nxb4 {[%emt 0:00:05]} 52. Rxb4 {[%emt 0:00:03]} Ra1 {[%emt 0:00:36]} 53. Rb6+ {[%emt 0:00:59]} Kg7 {[%emt 0:00:07]} 54. b4 {[%emt 0:00:19]} Rb1 {[%emt 0:00:10]} 55. b5 {[%emt 0:00:24]} Rb4 {[%emt 0:00:57]} 56. Kh3 {[%emt 0:00:52]} Rb3+ {[%emt 0:03:22]} 57. Kh4 {[%emt 0:00:35]} Rb1 {[%emt 0:01:02]} 58. Rb8 {[%emt 0:00:20]} Rb4 {[%emt 0:01:59]} 59. Kg3 {[%emt 0:01:09]} Kh7 {[%emt 0:00:48]} 60. b6 {[%emt 0:01:20]} Kg7 {[%emt 0:00:05]} 61. Kf3 {[%emt 0:06:51]} Kh7 {[%emt 0:00:24]} 62. Ke3 {[%emt 0:00:42]} Rxg4 {[%emt 0:00:05]} 63. Rf8 {[%emt 0:00:10]} Kg7 {[%emt 0:05:59]} 64. b7 {[%emt 0:00:15]} Kxf8 {[%emt 0:00:09]} 65. b8=Q+ {[%emt 0:00:02]} Kg7 {[%emt 0:00:07]} 66. Qe5+ {[%emt 0:00:06]} Kg8 {[%emt 0:00:04]} 67. Kf3 {[%emt 0:00:37]} Rg6 {[%emt 0:00:06]} 68. Kf4 {[%emt 0:00:06]} Re6 {[%emt 0:00:08]} 69. Qc3 {[%emt 0:00:26]} Rg6 {[%emt 0:00:06]} 1/2-1/2

[Event "RUS-ch Boys U21 2021"]
[Site "Loo"]
[Date "2021.04.24"]
[Round "4.9"]
[White "Babanin, Gleb"]
[Black "Nesterov, Arseniy"]
[Result "1/2-1/2"]
[ECO "C95"]
[WhiteElo "2123"]
[BlackElo "2482"]
[Annotator "ChessBase"]
[PlyCount "94"]
[EventDate "2021.04.21"]
[EventType "swiss"]
[EventCountry "RUS"]
[SourceTitle "playchess.com"]
[Source "ChessBase"]
[SourceQuality "1"]
[TimeControl "40/5400+30:1800+30"]

1. e4 {[%emt 0:00:00]} e5 {[%emt 0:00:00]} 2. Nf3 {[%emt 0:00:00]} Nc6 {[%emt 0:00:00]} 3. Bb5 {[%emt 0:00:00]} a6 {[%emt 0:00:00]} 4. Ba4 {[%emt 0:00:00]} Nf6 {[%emt 0:00:00]} 5. O-O {[%emt 0:00:00]} Be7 {[%emt 0:00:00]} 6. Re1 {[%emt 0:00:00]} b5 {[%emt 0:00:01]} 7. Bb3 {[%emt 0:00:00]} d6 {[%emt 0:00:05]} 8. c3 {[%emt 0:00:01]} O-O {[%emt 0:00:06]} 9. h3 {[%emt 0:00:05]} Nb8 {[%emt 0:00:13]} 10. d4 {[%emt 0:00:07]} Nbd7 {[%emt 0:00:05]} 11. Nbd2 {[%emt 0:00:08]} Bb7 {[%emt 0:00:08]} 12. Bc2 {[%emt 0:00:06]} Re8 {[%emt 0:00:38]} 13. Nf1 {[%emt 0:00:06]} Bf8 {[%emt 0:00:38]} 14. Ng3 {[%emt 0:00:06]} g6 {[%emt 0:01:26]} 15. a4 {[%emt 0:00:20]} c5 {[%emt 0:00:37]} 16. d5 {[%emt 0:00:38]} c4 {[%emt 0:00:06]} 17. Bg5 {[%emt 0:00:22]} Rb8 {[%emt 0:05:16]} 18. axb5 {[%emt 0:01:04]} axb5 {[%emt 0:00:01]} 19. Qd2 {[%emt 0:00:24]} Bg7 {[%emt 0:05:36]} 20. Bh6 {[%emt 0:00:54]} Bxh6 {[%emt 0:05:03]} 21. Qxh6 {[%emt 0:00:08]} Qe7 {[%emt 0:00:06]} 22. Ra5 {[%emt 0:03:35]} Bc8 {[%emt 0:00:27]} 23. Rea1 {[%emt 0:02:14]} Qf8 {[%emt 0:01:20]} 24. Qg5 {[%emt 0:10:42]} h6 {[%emt 0:00:31]} 25. Qe3 {[%emt 0:00:21]} Nc5 {[%emt 0:00:07]} 26. Nd2 {[%emt 0:10:15]} Kg7 {[%emt 0:06:53]} 27. Ne2 {[%emt 0:05:28]} Qe7 {[%emt 0:01:42]} 28. Nc1 {[%emt 0:06:31]} Qc7 {[%emt 0:02:44]} 29. R1a3 {[%emt 0:05:01]} Bd7 {[%emt 0:02:12]} 30. Na2 {[%emt 0:02:55]} Na4 {[%emt 0:07:43]} 31. Ra7 {[%emt 0:00:26]} Qc8 {[%emt 0:01:22]} 32. Nb4 {[%emt 0:03:55]} Nxb2 {[%emt 0:03:32]} 33. R3a6 {[%emt 0:04:37]} Qc5 {[%emt 0:00:25]} 34. Ra2 {[%emt 0:33:50]} Qxe3 {[%emt 0:12:55]} 35. fxe3 {[%emt 0:00:01]} Na4 {[%emt 0:01:17]} 36. Bxa4 bxa4 {[%emt 0:00:01]} 37. Nxc4 {[%emt 0:01:15]} Rec8 {[%emt 0:00:50]} 38. Nxd6 {[%emt 0:00:13]} Rxc3 {[%emt 0:00:05]} 39. Nc6 {[%emt 0:00:49]} Rb6 {[%emt 0:11:57]} 40. Rf2 {[%emt 0:00:00]} a3 {[%emt 0:00:00]} 41. Nxf7 {[%emt 0:10:38]} Rb2 {[%emt 0:04:45]} 42. Nfxe5 {[%emt 0:02:17]} Rc1+ {[%emt 0:00:36]} 43. Rf1 {[%emt 0:00:04]} Rcc2 {[%emt 0:04:10]} 44. Nf3 {[%emt 0:13:14]} Rxg2+ {[%emt 0:00:05]} 45. Kh1 {[%emt 0:00:03]} h5 {[%emt 0:14:57]} 46. Nce5 {[%emt 0:04:30]} Nxe4 {[%emt 0:03:14]} 47. Rxd7+ {[%emt 0:00:04]} Kg8 {[%emt 0:00:06]} 1/2-1/2

[Event "RUS-ch Boys U21 2021"]
[Site "Loo"]
[Date "2021.04.24"]
[Round "4.10"]
[White "Akhtariev, Andrey"]
[Black "Koliev, Irlan"]
[Result "1/2-1/2"]
[ECO "A16"]
[WhiteElo "2190"]
[BlackElo "2023"]
[Annotator "NA"]
[PlyCount "98"]
[EventDate "2021.04.21"]
[EventType "swiss"]
[EventCountry "RUS"]
[SourceTitle "playchess.com"]
[Source "ChessBase"]
[SourceQuality "1"]
[TimeControl "40/5400+30:1800+30"]

1. c4 {[%emt 0:00:00]} Nf6 {[%emt 0:00:00]} 2. Nc3 {[%emt 0:00:00]} g6 {[%emt 0:00:49]} 3. g3 {[%emt 0:00:07]} d5 {[%emt 0:03:10]} 4. cxd5 {[%emt 0:00:06]} Nxd5 {[%emt 0:00:04]} 5. Bg2 {[%emt 0:01:06]} Nxc3 {[%emt 0:05:10]} 6. bxc3 {[%emt 0:00:34]} Bg7 {[%emt 0:00:07]} 7. Qb3 {[%emt 0:03:21]} c6 {[%emt 0:03:02]} 8. h4 {[%emt 0:02:48]} O-O {[%emt 0:02:23]} 9. h5 {[%emt 0:02:26]} Qc7 {[%emt 0:02:50]} 10. Rb1 {[%emt 0:05:17]} b6 {[%emt 0:04:25]} 11. hxg6 {[%emt 0:01:58]} hxg6 {[%emt 0:00:07]} 12. Nh3 {[%emt 0:00:36]} Bf5 {[%emt 0:02:04]} 13. e4 {[%emt 0:03:50]} Bg4 {[%emt 0:24:04]} 14. Ba3 {[%emt 0:06:21]} c5 {[%emt 0:04:16]} 15. Qd5 {[%emt 0:14:00]} Rd8 {[%emt 0:08:38]} 16. Qg5 {[%emt 0:16:13]} Qd7 {[%emt 0:00:12]} 17. Qe3 {[%emt 0:00:17]} Nc6 {[%emt 0:02:38]} 18. f3 {[%emt 0:08:22]} Be6 {[%emt 0:00:09]} 19. Bf1 {[%emt 0:00:22]} Ne5 {[%emt 0:03:41]} 20. Bc1 {[%emt 0:06:32]} Bxa2 {[%emt 0:01:17]} 21. Ra1 {[%emt 0:00:15]} Bc4 {[%emt 0:00:14]} 22. Nf2 {[%emt 0:00:30]} b5 {[%emt 0:05:52]} 23. Be2 {[%emt 0:02:08]} Bxe2 {[%emt 0:02:42]} 24. Kxe2 {[%emt 0:00:07]} c4 {[%emt 0:04:26]} 25. Ba3 {[%emt 0:03:33]} a5 {[%emt 0:00:56]} 26. Rab1 {[%emt 0:01:30]} Rab8 {[%emt 0:03:10]} 27. Bc5 {[%emt 0:00:39]} Nd3 {[%emt 0:03:55]} 28. Nxd3 {[%emt 0:00:37]} Qxd3+ {[%emt 0:00:02]} 29. Qxd3 {[%emt 0:00:07]} cxd3+ {[%emt 0:02:57]} 30. Ke3 {[%emt 0:00:25]} e5 {[%emt 0:00:06]} 31. Rb2 {[%emt 0:06:08]} Rdc8 {[%emt 0:03:05]} 32. Ba3 {[%emt 0:00:51]} b4 {[%emt 0:05:01]} 33. cxb4 {[%emt 0:00:10]} Bf8 {[%emt 0:00:01]} 34. Rhb1 {[%emt 0:00:42]} Rd8 {[%emt 0:00:14]} 35. f4 {[%emt 0:01:25]} exf4+ {[%emt 0:00:45]} 36. gxf4 {[%emt 0:00:17]} a4 {[%emt 0:00:27]} 37. Rc1 {[%emt 0:02:13]} Rb5 {[%emt 0:00:44]} 38. Rbb1 {[%emt 0:00:32]} Bg7 {[%emt 0:01:25]} 39. Rc4 {[%emt 0:00:57]} Rh5 {[%emt 0:00:57]} 40. e5 {[%emt 0:00:00]} g5 {[%emt 0:00:00]} 41. Rg1 {[%emt 0:13:57]} gxf4+ {[%emt 0:02:39]} 42. Rxf4 {[%emt 0:00:15]} Rxe5+ {[%emt 0:00:38]} 43. Kf3 {[%emt 0:00:05]} Re6 {[%emt 0:04:37]} 44. b5 {[%emt 0:05:48]} Rb8 {[%emt 0:02:18]} 45. Rfg4 {[%emt 0:00:38]} Rg6 {[%emt 0:00:23]} 46. Rxg6 {[%emt 0:00:05]} fxg6 {[%emt 0:00:05]} 47. Rb1 {[%emt 0:00:18]} Bf8 {[%emt 0:03:28]} 48. Bxf8 {[%emt 0:00:20]} Kxf8 {[%emt 0:00:03]} 49. Ke4 {[%emt 0:00:09]} a3 {[%emt 0:03:50]} 1/2-1/2

[Event "RUS-ch Boys U21 2021"]
[Site "Loo"]
[Date "2021.04.24"]
[Round "4.11"]
[White "Kyshtymov, Daniil"]
[Black "Vetokhin, Savva"]
[Result "0-1"]
[ECO "C42"]
[WhiteElo "2137"]
[BlackElo "2261"]
[Annotator "ChessBase"]
[PlyCount "148"]
[EventDate "2021.04.21"]
[EventType "swiss"]
[EventCountry "RUS"]
[SourceTitle "playchess.com"]
[Source "ChessBase"]
[SourceQuality "1"]
[TimeControl "40/5400+30:1800+30"]

1. e4 {[%emt 0:00:00]} e5 {[%emt 0:00:52]} 2. Nf3 {[%emt 0:00:00]} Nf6 {[%emt 0:00:06]} 3. Nxe5 {[%emt 0:00:06]} d6 {[%emt 0:00:08]} 4. Nf3 {[%emt 0:00:10]} Nxe4 {[%emt 0:00:05]} 5. Nc3 {[%emt 0:00:22]} Nxc3 {[%emt 0:00:11]} 6. dxc3 {[%emt 0:00:09]} Be7 {[%emt 0:00:03]} 7. Be3 {[%emt 0:01:37]} O-O {[%emt 0:00:14]} 8. Qd2 {[%emt 0:00:09]} Nd7 {[%emt 0:00:12]} 9. O-O-O {[%emt 0:02:27]} c6 {[%emt 0:00:22]} 10. c4 {[%emt 0:16:16]} Ne5 {[%emt 0:08:20]} 11. Bf4 {[%emt 0:22:25]} Nxf3 {[%emt 0:01:34]} 12. gxf3 {[%emt 0:00:06]} Be6 {[%emt 0:07:52]} 13. Rg1 {[%emt 0:16:21]} Bf6 {[%emt 0:03:52]} 14. Bxd6 {[%emt 0:10:23]} Qb6 {[%emt 0:00:43]} 15. b3 {[%emt 0:07:52]} c5 {[%emt 0:13:36]} 16. Qf4 {[%emt 0:03:12]} Bc3 {[%emt 0:01:09]} 17. Be5 {[%emt 0:03:26]} Bxe5 {[%emt 0:00:26]} 18. Qxe5 {[%emt 0:00:06]} g6 {[%emt 0:03:27]} 19. Bd3 {[%emt 0:02:49]} Rfe8 {[%emt 0:04:05]} 20. Qf6 {[%emt 0:01:41]} Qd8 {[%emt 0:00:28]} 21. Qf4 {[%emt 0:01:33]} Qa5 {[%emt 0:01:01]} 22. Kb2 {[%emt 0:00:17]} Rac8 {[%emt 0:00:33]} 23. h4 {[%emt 0:01:20]} Qc7 {[%emt 0:03:27]} 24. Qf6 {[%emt 0:01:21]} Qe7 {[%emt 0:00:22]} 25. Qf4 {[%emt 0:00:53]} Kg7 {[%emt 0:00:19]} 26. Be4 {[%emt 0:05:03]} b6 {[%emt 0:00:08]} 27. Qg5 {[%emt 0:01:51]} Qf6+ {[%emt 0:00:38]} 28. Kb1 {[%emt 0:01:09]} h6 {[%emt 0:02:56]} 29. Qg3 {[%emt 0:00:52]} h5 {[%emt 0:03:17]} 30. Rd6 {[%emt 0:00:31]} Rcd8 {[%emt 0:00:15]} 31. Rgd1 {[%emt 0:00:15]} Rxd6 {[%emt 0:00:28]} 32. Rxd6 {[%emt 0:00:05]} Qc3 {[%emt 0:01:39]} 33. Rd3 {[%emt 0:00:42]} Qf6 {[%emt 0:00:20]} 34. a4 {[%emt 0:00:54]} Bf5 {[%emt 0:12:53]} 35. Rd6 {[%emt 0:00:32]} Qc3 {[%emt 0:00:44]} 36. Rd3 {[%emt 0:00:33]} Qe1+ {[%emt 0:00:09]} 37. Kb2 {[%emt 0:00:28]} Bxe4 {[%emt 0:00:23]} 38. Re3 {[%emt 0:00:32]} Qh1 {[%emt 0:01:09]} 39. fxe4 {[%emt 0:00:29]} Rxe4 {[%emt 0:00:01]} 40. Rxe4 {[%emt 0:00:00]} Qxe4 {[%emt 0:00:00]} 41. Kb1 {[%emt 0:10:47]} Qd4 {[%emt 0:02:10]} 42. Ka2 {[%emt 0:03:00]} a5 {[%emt 0:02:58]} 43. f3 {[%emt 0:10:08]} Qf6 {[%emt 0:02:40]} 44. Kb1 {[%emt 0:00:47]} Kh6 {[%emt 0:00:19]} 45. Ka2 {[%emt 0:07:27]} g5 {[%emt 0:05:24]} 46. hxg5+ {[%emt 0:00:11]} Qxg5 {[%emt 0:00:01]} 47. Qd6+ {[%emt 0:00:41]} Qg6 {[%emt 0:00:30]} 48. Qf4+ {[%emt 0:01:30]} Kg7 {[%emt 0:00:01]} 49. Kb1 {[%emt 0:00:19]} Qf6 {[%emt 0:00:06]} 50. Qg3+ {[%emt 0:00:33]} Kh6 {[%emt 0:00:14]} 51. f4 {[%emt 0:00:35]} Qf5 {[%emt 0:00:32]} 52. Kb2 {[%emt 0:00:28]} Qg4 {[%emt 0:00:08]} 53. Qe3 {[%emt 0:00:24]} h4 {[%emt 0:00:13]} 54. Ka2 {[%emt 0:00:41]} h3 {[%emt 0:00:25]} 55. Qe5 {[%emt 0:00:25]} Kh7 {[%emt 0:02:30]} 56. Qe4+ {[%emt 0:00:34]} Kh6 {[%emt 0:00:51]} 57. Qe5 {[%emt 0:00:17]} Kg6 {[%emt 0:01:52]} 58. Qh8 {[%emt 0:00:39]} Qh5 {[%emt 0:00:40]} 59. Qg8+ {[%emt 0:00:35]} Kf5 {[%emt 0:00:06]} 60. Qc8+ {[%emt 0:00:29]} Ke4 {[%emt 0:00:57]} 61. Qc6+ {[%emt 0:00:29]} Ke3 {[%emt 0:00:08]} 62. Qh1 {[%emt 0:00:31]} h2 {[%emt 0:00:37]} 63. f5 {[%emt 0:00:31]} Kf2 {[%emt 0:00:13]} 64. f6 {[%emt 0:00:30]} Qh3 {[%emt 0:00:17]} 65. Kb2 {[%emt 0:00:31]} Qg2 {[%emt 0:00:18]} 66. Qc1 {[%emt 0:00:05]} h1=Q {[%emt 0:00:29]} 67. Qf4+ {[%emt 0:00:35]} Qf3 {[%emt 0:00:09]} 68. Qd2+ {[%emt 0:00:11]} Kg3 {[%emt 0:00:17]} 69. Qg5+ {[%emt 0:00:23]} Qg4 {[%emt 0:00:01]} 70. Qe3+ {[%emt 0:00:22]} Qhf3 {[%emt 0:00:05]} 71. Qe5+ {[%emt 0:01:21]} Kg2 {[%emt 0:00:03]} 72. Ka2 {[%emt 0:00:11]} Qfe4 {[%emt 0:00:12]} 73. Qb2 {[%emt 0:00:42]} Qge2 {[%emt 0:00:07]} 74. Kb1 {[%emt 0:00:05]} Qd1+ {[%emt 0:00:06]} 0-1

[Event "RUS-ch Boys U21 2021"]
[Site "Loo"]
[Date "2021.04.24"]
[Round "4.12"]
[White "Shemyakin, Valeriy"]
[Black "Sidorov, Dmitry I"]
[Result "0-1"]
[ECO "A50"]
[WhiteElo "2168"]
[BlackElo "2139"]
[Annotator "NA"]
[PlyCount "46"]
[EventDate "2021.04.21"]
[EventType "swiss"]
[EventCountry "RUS"]
[SourceTitle "playchess.com"]
[Source "ChessBase"]
[SourceQuality "1"]
[TimeControl "40/5400+30:1800+30"]

1. d4 {[%emt 0:02:20]} Nf6 {[%emt 0:01:28]} 2. c4 {[%emt 0:00:11]} Nc6 {[%emt 0:00:05]} 3. Nc3 {[%emt 0:06:09]} e5 {[%emt 0:00:03]} 4. d5 {[%emt 0:05:26]} Ne7 {[%emt 0:00:01]} 5. e4 {[%emt 0:02:22]} Ng6 {[%emt 0:00:05]} 6. Be3 {[%emt 0:00:28]} Bb4 {[%emt 0:00:09]} 7. f3 {[%emt 0:00:56]} Bxc3+ {[%emt 0:01:03]} 8. bxc3 {[%emt 0:00:19]} d6 {[%emt 0:04:59]} 9. c5 {[%emt 0:05:41]} O-O {[%emt 0:00:08]} 10. Ne2 {[%emt 0:00:37]} Nh5 {[%emt 0:01:21]} 11. g3 {[%emt 0:07:11]} f5 {[%emt 0:05:55]} 12. exf5 {[%emt 0:00:35]} Bxf5 {[%emt 0:11:28]} 13. g4 {[%emt 0:09:29]} Nh4 {[%emt 0:06:34]} 14. Ng3 {[%emt 0:02:18]} Bd7 {[%emt 0:11:21]} 15. gxh5 {[%emt 0:25:32]} Nxf3+ {[%emt 0:00:19]} 16. Ke2 {[%emt 0:00:17]} Qh4 {[%emt 0:18:36]} 17. Qd3 {[%emt 0:20:41]} e4 {[%emt 0:06:07]} 18. Qxe4 {[%emt 0:03:25]} Qf6 {[%emt 0:22:00]} 19. Bg2 {[%emt 0:03:03]} Bb5+ {[%emt 0:01:48]} 20. Kd1 {[%emt 0:01:46]} Rae8 {[%emt 0:00:29]} 21. Bd4 {[%emt 0:00:48]} Qg5 {[%emt 0:01:28]} 22. Bxf3 {[%emt 0:00:33]} Rxf3 {[%emt 0:01:19]} 23. Qxf3 {[%emt 0:00:15]} Ba4# {[%emt 0:00:04]} 0-1

[Event "RUS-ch Boys U21 2021"]
[Site "Loo"]
[Date "2021.04.25"]
[Round "5.5"]
[White "Stukan, Martin"]
[Black "Shubin, Kirill"]
[Result "1-0"]
[ECO "C11"]
[WhiteElo "2390"]
[BlackElo "2466"]
[Annotator "RC"]
[PlyCount "96"]
[EventDate "2021.04.21"]
[EventType "swiss"]
[EventCountry "RUS"]
[SourceTitle "playchess.com"]
[Source "ChessBase"]
[SourceQuality "1"]
[TimeControl "40/5400+30:1800+30"]

1. e4 {[%emt 0:00:00]} e6 {[%emt 0:00:00]} 2. d4 {[%emt 0:00:00]} d5 {[%emt 0:00:00]} 3. Nc3 {[%emt 0:00:00]} Nf6 {[%emt 0:00:00]} 4. Bg5 {[%emt 0:00:00]} dxe4 {[%emt 0:00:00]} 5. Nxe4 {[%emt 0:00:00]} Be7 {[%emt 0:00:00]} 6. Bxf6 {[%emt 0:00:00]} gxf6 {[%emt 0:00:00]} 7. Qd2 {[%emt 0:00:00]} c5 {[%emt 0:00:03]} 8. Nxc5 {[%emt 0:20:01]} Bxc5 {[%emt 0:00:14]} 9. dxc5 {[%emt 0:00:16]} Qxd2+ {[%emt 0:00:05]} 10. Kxd2 {[%emt 0:00:02]} Ke7 {[%emt 0:00:07]} 11. Nf3 {[%emt 0:11:25]} a5 {[%emt 0:00:40]} 12. Ke3 {[%emt 0:11:27]} Nd7 {[%emt 0:06:23]} 13. c6 {[%emt 0:04:37]} bxc6 {[%emt 0:00:16]} 14. Be2 {[%emt 0:04:59]} c5 {[%emt 0:03:32]} 15. Nd2 {[%emt 0:00:52]} Bb7 {[%emt 0:00:16]} 16. Bf3 {[%emt 0:00:26]} Bxf3 {[%emt 0:00:17]} 17. Kxf3 {[%emt 0:00:54]} h5 {[%emt 0:02:30]} 18. Nc4 {[%emt 0:12:58]} Ne5+ {[%emt 0:03:53]} 19. Nxe5 {[%emt 0:01:17]} fxe5 {[%emt 0:00:02]} 20. Rhe1 {[%emt 0:00:16]} f6 {[%emt 0:00:49]} 21. Re4 {[%emt 0:00:08]} Rhb8 {[%emt 0:04:40]} 22. b3 {[%emt 0:03:17]} Rb4 {[%emt 0:00:21]} 23. Rd1 {[%emt 0:02:33]} Rd4 {[%emt 0:03:28]} 24. Rdxd4 {[%emt 0:00:20]} cxd4 {[%emt 0:00:15]} 25. Ke2 {[%emt 0:00:18]} Rc8 {[%emt 0:02:03]} 26. Kd2 {[%emt 0:00:07]} Kf7 {[%emt 0:00:04]} 27. Re1 {[%emt 0:17:49]} h4 {[%emt 0:04:29]} 28. Re4 {[%emt 0:00:53]} Rg8 {[%emt 0:00:04]} 29. g3 {[%emt 0:00:44]} hxg3 {[%emt 0:00:03]} 30. hxg3 {[%emt 0:00:02]} Rc8 {[%emt 0:01:01]} 31. f4 {[%emt 0:01:09]} Rc5 {[%emt 0:00:08]} 32. fxe5 {[%emt 0:00:28]} fxe5 {[%emt 0:00:07]} 33. c4 {[%emt 0:00:45]} dxc3+ {[%emt 0:01:49]} 34. Kc2 {[%emt 0:00:02]} Kf6 {[%emt 0:00:05]} 35. Rc4 {[%emt 0:01:03]} Rd5 {[%emt 0:00:17]} 36. Kxc3 {[%emt 0:00:20]} Kf5 {[%emt 0:00:12]} 37. g4+ {[%emt 0:00:09]} Kg5 {[%emt 0:00:05]} 38. Re4 {[%emt 0:01:03]} Rc5+ {[%emt 0:00:05]} 39. Kd3 {[%emt 0:00:10]} Kf6 {[%emt 0:00:09]} 40. a3 {[%emt 0:00:00]} Rd5+ {[%emt 0:00:00]} 41. Kc4 {[%emt 0:01:41]} Rd1 {[%emt 0:01:39]} 42. b4 {[%emt 0:02:25]} axb4 {[%emt 0:00:30]} 43. axb4 {[%emt 0:00:30]} Rc1+ {[%emt 0:05:37]} 44. Kb5 {[%emt 0:01:28]} Rf1 {[%emt 0:00:03]} 45. Kc5 {[%emt 0:12:18]} Rc1+ {[%emt 0:00:04]} 46. Rc4 {[%emt 0:03:35]} Re1 {[%emt 0:00:07]} 47. b5 {[%emt 0:00:30]} e4 {[%emt 0:00:10]} 48. Rb4 {[%emt 0:11:01]} e5 {[%emt 0:03:23]} 1-0

[Event "RUS-ch Boys U21 2021"]
[Site "Loo"]
[Date "2021.04.26"]
[Round "6.1"]
[White "Dudin, Gleb"]
[Black "Tsvetkov, Andrey"]
[Result "1/2-1/2"]
[ECO "B13"]
[WhiteElo "2418"]
[BlackElo "2404"]
[Annotator "NA"]
[PlyCount "99"]
[EventDate "2021.04.21"]
[EventType "swiss"]
[EventCountry "RUS"]
[SourceTitle "playchess.com"]
[Source "ChessBase"]
[SourceQuality "1"]
[TimeControl "40/5400+30:1800+30"]

1. c4 {[%emt 0:01:41]} c6 {[%emt 0:00:01]} 2. e4 {[%emt 0:02:29]} d5 {[%emt 0:00:22]} 3. exd5 {[%emt 0:00:28]} cxd5 {[%emt 0:00:05]} 4. d4 {[%emt 0:00:06]} Nf6 {[%emt 0:00:53]} 5. Nc3 {[%emt 0:00:30]} Nc6 {[%emt 0:04:13]} 6. Bg5 {[%emt 0:09:04]} e6 {[%emt 0:17:49]} 7. cxd5 {[%emt 0:45:19]} exd5 {[%emt 0:00:14]} 8. Bb5 {[%emt 0:05:04]} Be7 {[%emt 0:05:26]} 9. Nf3 {[%emt 0:08:51]} O-O {[%emt 0:00:52]} 10. O-O {[%emt 0:00:06]} Bg4 {[%emt 0:00:32]} 11. Bxc6 {[%emt 0:07:57]} bxc6 {[%emt 0:00:06]} 12. h3 {[%emt 0:00:04]} Bxf3 {[%emt 0:07:54]} 13. Qxf3 {[%emt 0:00:08]} Qb6 {[%emt 0:00:05]} 14. Qe3 {[%emt 0:06:49]} Rfe8 {[%emt 0:01:44]} 15. Qd2 {[%emt 0:04:48]} h6 {[%emt 0:02:51]} 16. Be3 {[%emt 0:01:02]} Bd6 {[%emt 0:21:29]} 17. Rac1 {[%emt 0:00:29]} Re6 {[%emt 0:03:05]} 18. Rc2 {[%emt 0:02:27]} Rae8 {[%emt 0:01:15]} 19. Bf4 {[%emt 0:01:28]} Ne4 {[%emt 0:04:00]} 20. Nxe4 {[%emt 0:00:38]} Bxf4 {[%emt 0:00:01]} 21. Qxf4 {[%emt 0:00:16]} Qxd4 {[%emt 0:00:05]} 22. Qe3 {[%emt 0:00:43]} Qxe3 {[%emt 0:14:28]} 23. fxe3 {[%emt 0:00:02]} Rxe4 {[%emt 0:00:00]} 24. Rxc6 {[%emt 0:00:11]} Rxe3 {[%emt 0:00:03]} 25. Rd6 {[%emt 0:00:29]} Re2 {[%emt 0:00:46]} 26. Rf2 {[%emt 0:00:54]} Rxf2 {[%emt 0:03:22]} 27. Kxf2 {[%emt 0:00:03]} Rc8 {[%emt 0:00:03]} 28. Rxd5 {[%emt 0:01:08]} Rc2+ {[%emt 0:00:03]} 29. Kf3 {[%emt 0:00:09]} Rxb2 {[%emt 0:00:04]} 30. Ra5 {[%emt 0:00:19]} Rb7 {[%emt 0:00:08]} 31. h4 {[%emt 0:01:13]} g6 {[%emt 0:00:52]} 32. g4 {[%emt 0:00:29]} Re7 {[%emt 0:00:47]} 33. Ra6 {[%emt 0:00:32]} Kg7 {[%emt 0:00:38]} 34. Kf4 {[%emt 0:00:09]} Rc7 {[%emt 0:00:29]} 35. Kf3 {[%emt 0:00:23]} Rc3+ {[%emt 0:01:54]} 36. Kg2 {[%emt 0:00:06]} Rc4 {[%emt 0:00:40]} 37. Kg3 {[%emt 0:00:06]} Rc7 {[%emt 0:00:09]} 38. Kf3 {[%emt 0:00:06]} f6 {[%emt 0:00:43]} 39. Kg3 {[%emt 0:02:11]} h5 {[%emt 0:00:19]} 40. gxh5 {[%emt 0:00:00]} gxh5 {[%emt 0:00:00]} 41. Ra5 {[%emt 0:01:58]} Kg6 {[%emt 0:03:25]} 42. Kf3 {[%emt 0:04:49]} Rc3+ {[%emt 0:00:14]} 43. Kg2 {[%emt 0:00:06]} Rc4 {[%emt 0:00:10]} 44. Kg3 {[%emt 0:00:08]} Rc7 {[%emt 0:00:12]} 45. Kf3 {[%emt 0:00:10]} Kh6 {[%emt 0:00:08]} 46. Kg3 {[%emt 0:00:08]} Rc3+ {[%emt 0:00:08]} 47. Kg2 {[%emt 0:00:07]} Rc4 {[%emt 0:00:06]} 48. Kg3 {[%emt 0:00:09]} Rg4+ {[%emt 0:00:08]} 49. Kh3 {[%emt 0:00:06]} Rg7 {[%emt 0:00:04]} 50. Kh2 {[%emt 0:00:38]} 1/2-1/2